fUSD/lending_fUSD_20240329
["ID","MTS","AMOUNT","RATE_DAILY","PERIOD"]
[320987397,1711731045317,-500.0,0.00052054,120]
[320987398,1711731045327,-500.0,0.00052054,120]
[320987399,1711731045336,-500.0,0.00052054,120]
[320987400,1711731045346,-500.0,0.00052054,120]
[320987401,1711731045356,-500.0,0.00052054,120]
[320987402,1711731045365,-500.0,0.00052054,120]
[320987403,1711731045375,-504.10873392,0.00052054,120]
[320987404,1711731045384,-527.12,0.00052054,120]
[320987405,1711731045393,-500.0,0.00052054,120]
[320987406,1711731045403,-671.7,0.00052054,120]
[320987407,1711731045412,-500.0,0.00052054,120]
[320987408,1711731045422,-543.55,0.00052054,120]
[320987409,1711731045431,-500.0,0.00052054,120]
[320987410,1711731045440,-2310.88,0.00052054,120]
[320987411,1711731045450,-500.0,0.00052054,120]
[320987412,1711731045458,-3596.62,0.00052054,120]
[320987413,1711731045468,-500.0,0.00052054,120]
[320987414,1711731045477,-549.36,0.00052054,120]
[320987415,1711731045486,-500.0,0.00052054,120]
[320987416,1711731045497,-500.0,0.00052054,120]
[320987417,1711731045507,-500.0,0.00052054,120]
[320987418,1711731045520,-500.0,0.00052054,120]
[320987419,1711731045530,-1000.0,0.00052054,14]
[320987420,1711731045539,-500.0,0.00052054,120]
[320987421,1711731045548,-500.0,0.00052054,120]
[320987422,1711731045557,-762.26,0.00052054,120]
[320987423,1711731045567,-512.09,0.00052054,120]
[320987424,1711731045577,-500.0,0.00052054,80]
[320987425,1711731045586,-500.0,0.00052054,120]
[320987426,1711731045596,-500.0,0.00052054,120]
[320987427,1711731045605,-500.0,0.00052054,120]
[320987428,1711731045615,-511.5489996,0.00052054,120]
[320987429,1711731045624,-500.0,0.00052054,120]
[320987430,1711731045633,-500.0,0.00052054,120]
[320987431,1711731045642,-500.0,0.00052054,120]
[320987432,1711731045651,-508.66138683,0.00052054,120]
[320987433,1711731045660,-500.0,0.00052054,120]
[320987434,1711731045669,-500.0,0.00052054,120]
[320987435,1711731045678,-5212.23,0.00052054,120]
[320987436,1711731045687,-532.23,0.00052054,120]
[320987437,1711731045697,-500.0,0.00052054,120]
[320987438,1711731045706,-500.0,0.00052054,120]
[320987439,1711731045715,-500.0,0.00052054,120]
[320987440,1711731045724,-503.87428391,0.00052054,120]
[320987441,1711731045734,-500.0,0.00052054,120]
[320987442,1711731045743,-500.0,0.00052054,120]
[320987443,1711731045752,-500.0,0.00052054,120]
[320987444,1711731045761,-500.0,0.00052054,120]
[320987445,1711731045770,-500.0,0.00052054,120]
[320987446,1711731045780,-838.76,0.00052054,120]
[320987447,1711731045790,-506.2035238,0.00052054,120]
[320987448,1711731045799,-504.5489004,0.00052054,120]
[320987449,1711731045809,-500.0,0.00052054,120]
[320987450,1711731045818,-688.85,0.00052054,120]
[320987451,1711731045827,-500.0,0.00052054,120]
[320987452,1711731045836,-506.95024197,0.00052054,120]
[320987453,1711731045846,-500.0,0.00052054,120]
[320987454,1711731045856,-500.0,0.00052054,120]
[320987455,1711731045865,-500.0,0.00052054,120]
[320987456,1711731045874,-1392.06,0.00052054,120]
[320987457,1711731045884,-500.0,0.00052054,120]
[320987458,1711731045893,-630.06,0.00052054,120]
[320987459,1711731045903,-500.0,0.00052054,120]
[320987460,1711731045912,-500.0,0.00052054,120]
[320987461,1711731045922,-500.0,0.00052054,120]
[320987462,1711731045932,-610.57,0.00052054,120]
[320987464,1711731045942,-500.0,0.00052054,120]
[320987465,1711731045951,-1553.83,0.00052054,120]
[320987467,1711731045961,-505.26110567,0.00052054,120]
[320987470,1711731045971,-500.0,0.00052054,120]
[320987472,1711731045981,-500.0,0.00052054,120]
[320987473,1711731045992,-533.63,0.00052054,120]
[320987476,1711731046002,-447.93984199,0.00052054,120]
[320987478,1711731046013,-1299.22,0.00052054,120]
[320987480,1711731046023,-500.0,0.00052054,120]
[320987482,1711731046032,-500.0,0.00052054,120]
[320987483,1711731046043,-504.36285563,0.00052054,120]
[320987485,1711731046052,-245.08872869,0.00052054,120]
[320987486,1711731046062,-500.0,0.00052054,120]
[320987487,1711731046072,-531.65,0.00052054,120]
[320987488,1711731046082,-500.0,0.00052054,120]
[320987489,1711731046093,-500.0,0.00052054,120]
[320987490,1711731046103,-3220.74,0.00052054,120]
[320987491,1711731046113,-2611.36,0.00052054,120]
[320987492,1711731046123,-1080.91,0.00052054,120]
[320987493,1711731046132,-617.12,0.00052054,120]
[320987494,1711731046142,-503.21646006,0.00052054,120]
[320987495,1711731046152,-500.0,0.00052054,120]
[320987496,1711731046163,-500.0,0.00052054,120]
[320987497,1711731046172,-500.0,0.00052054,120]
[320987498,1711731046182,-6640.01,0.00052054,120]
[320987499,1711731046192,-622.83,0.00052054,120]
[320987500,1711731046202,-500.0,0.00052054,120]
[320987501,1711731046212,-2395.31,0.00052054,120]
[320987502,1711731046222,-500.0,0.00052054,120]
[320987503,1711731046231,-500.0,0.00052054,120]
[320987504,1711731046241,-616.27,0.00052054,120]
[320987505,1711731046254,-500.0,0.00052054,120]
[320987506,1711731046264,-500.0,0.00052054,120]
[320987507,1711731046274,-723.84,0.00052054,120]
[320987508,1711731046283,-7687.49,0.00052054,120]
[320987509,1711731046295,-500.0,0.00052054,120]
[320987510,1711731046304,-500.0,0.00052054,120]
[320987511,1711731046314,-500.0,0.00052054,120]
[320987512,1711731046323,-500.0,0.00052054,120]
[320987513,1711731046333,-500.0,0.00052054,120]
[320987514,1711731046342,-500.0,0.00052054,120]
[320987515,1711731046352,-500.0,0.00052054,120]
[320987516,1711731046362,-500.0,0.00052054,120]
[320987517,1711731046371,-500.0,0.00052054,120]
[320987518,1711731046381,-819.41,0.00052054,120]
[320987519,1711731046391,-500.0,0.00052054,120]
[320987520,1711731046400,-905.05,0.00052054,120]
[320987521,1711731046410,-500.0,0.00052054,120]
[320987522,1711731046420,-500.0,0.00052054,120]
[320987523,1711731046429,-2738.82,0.00052054,120]
[320987524,1711731046439,-3086.07,0.00052054,120]
[320987525,1711731046449,-580.79,0.00052054,120]
[320987526,1711731046458,-500.0,0.00052054,120]
[320987527,1711731046468,-1875.18,0.00052054,120]
[320987528,1711731046477,-500.0,0.00052054,120]
[320987529,1711731046486,-500.0,0.00052054,120]
[320987530,1711731046501,-500.0,0.00052054,120]
[320987531,1711731046510,-500.0,0.00052054,120]
[320987532,1711731046523,-500.0,0.00052054,60]
[320987533,1711731046532,-2093.61,0.00052054,120]
[320987534,1711731046543,-7651.47,0.00052054,120]
[320987535,1711731046553,-597.42,0.00052054,120]
[320987536,1711731046563,-505.07517499,0.00052054,120]
[320987537,1711731046574,-500.0,0.00052054,120]
[320987538,1711731046585,-3539.77,0.00052054,120]
[320987539,1711731046597,-4165.02,0.00052054,120]
[320987540,1711731046606,-617.66,0.00052054,120]
[320987541,1711731046616,-500.0,0.00052054,120]
[320987542,1711731046625,-500.0,0.00052054,120]
[320987543,1711731046635,-500.0,0.00052054,120]
[320987544,1711731046645,-1606.38,0.00052054,120]
[320987545,1711731046654,-500.0,0.00052054,120]
[320987546,1711731046664,-500.0,0.00052054,120]
[320987547,1711731046674,-500.0,0.00052054,120]
[320987548,1711731046684,-3005.88,0.00052054,120]
[320987549,1711731046694,-500.0,0.00052054,120]
[320987550,1711731046703,-500.0,0.00052054,120]
[320987551,1711731046713,-500.0,0.00052054,120]
[320987552,1711731046723,-500.0,0.00052054,120]
[320987553,1711731046733,-2774.07,0.00052054,120]
[320987554,1711731046744,-2154.85,0.00052054,120]
[320987555,1711731046754,-500.0,0.00052054,120]
[320987556,1711731046764,-610.4,0.00052054,120]
[320987557,1711731046773,-500.0,0.00052054,2]
[320987558,1711731046783,-500.0,0.00052054,120]
[320987559,1711731046792,-500.0,0.00052054,2]
[320987560,1711731046802,-576.12,0.00052054,120]
[320987561,1711731046811,-589.34,0.00052054,120]
[320987562,1711731046821,-500.0,0.00052054,120]
[320987563,1711731046832,-1154.67,0.00052054,120]
[320987564,1711731046841,-500.0,0.00052054,120]
[320987565,1711731046851,-504.81879955,0.00052054,120]
[320987566,1711731046861,-500.0,0.00052054,120]
[320987567,1711731046870,-1991.81,0.00052054,120]
[320987568,1711731046879,-500.0,0.00052054,120]
[320987569,1711731046888,-500.0,0.00052054,120]
[320987570,1711731046898,-2448.83,0.00052054,120]
[320987571,1711731046907,-500.0,0.00052054,120]
[320987572,1711731046917,-500.0,0.00052054,120]
[320987573,1711731046926,-500.0,0.00052054,120]
[320987574,1711731046935,-500.0,0.00052054,120]
[320987575,1711731046945,-500.0,0.00052054,120]
[320987576,1711731046955,-500.0,0.00052054,120]
[320987577,1711731046964,-2369.82,0.00052054,120]
[320987578,1711731046973,-500.0,0.00052054,120]
[320987579,1711731046983,-500.0,0.00052054,120]
[320987580,1711731046995,-500.0,0.00052054,120]
[320987581,1711731047005,-904.7,0.00052054,120]
[320987582,1711731047014,-500.0,0.00052054,120]
[320987583,1711731047024,-500.0,0.00052054,120]
[320987584,1711731047034,-500.0,0.00052054,120]
[320987585,1711731047043,-544.8,0.00052054,120]
[320987586,1711731047053,-500.0,0.00052054,120]
[320987587,1711731047062,-500.0,0.00052054,120]
[320987588,1711731047071,-1684.1,0.00052054,120]
[320987589,1711731047081,-500.0,0.00052054,120]
[320987590,1711731047090,-500.0,0.00052054,120]
[320987591,1711731047100,-500.0,0.00052054,120]
[320987592,1711731047109,-500.0,0.00052054,120]
[320987593,1711731047119,-500.0,0.00052054,120]
[320987594,1711731047129,-500.0,0.00052054,120]
[320987595,1711731047138,-6471.64,0.00052054,120]
[320987596,1711731047148,-500.0,0.00052054,120]
[320987597,1711731047159,-4037.26,0.00052054,21]
[320987598,1711731047169,-2486.15,0.00052054,120]
[320987599,1711731047179,-500.0,0.00052054,120]
[320987600,1711731047190,-1722.55,0.00052054,120]
[320987601,1711731047201,-1325.8,0.00052054,120]
[320987602,1711731047212,-500.0,0.00052054,120]
[320987603,1711731047222,-500.0,0.00052054,120]
[320987604,1711731047232,-2956.53,0.00052054,120]
[320987605,1711731047242,-4113.57,0.00052054,120]
[320987606,1711731047254,-500.0,0.00052054,120]
[320987607,1711731047264,-500.0,0.00052054,120]
[320987608,1711731047273,-500.0,0.00052054,120]
[320987609,1711731047283,-500.0,0.00052054,120]
[320987610,1711731047293,-500.0,0.00052054,120]
[320987611,1711731047304,-500.0,0.00052054,120]
[320987612,1711731047314,-500.0,0.00052054,120]
[320987613,1711731047324,-915.79,0.00052054,120]
[320987614,1711731047334,-500.0,0.00052054,120]
[320987615,1711731047344,-500.0,0.00052054,120]
[320987616,1711731047354,-1595.2,0.00052054,120]
[320987617,1711731047365,-500.0,0.00052054,120]
[320987618,1711731047376,-500.0,0.00052054,120]
[320987619,1711731047387,-500.0,0.00052054,120]
[320987620,1711731047398,-500.0,0.00052054,120]
[320987621,1711731047408,-500.0,0.00052054,120]
[320987622,1711731047419,-500.0,0.00052054,120]
[320987623,1711731047429,-684.51,0.00052054,120]
[320987624,1711731047440,-500.0,0.00052054,120]
[320987625,1711731047450,-500.0,0.00052054,120]
[320987626,1711731047460,-500.0,0.00052054,120]
[320987627,1711731047472,-500.0,0.00052054,120]
[320987628,1711731047483,-500.0,0.00052054,120]
[320987629,1711731047497,-2976.3,0.00052054,120]
[320987630,1711731047507,-500.0,0.00052054,120]
[320987631,1711731047517,-1003.25,0.00052054,120]
[320987632,1711731047528,-500.0,0.00052054,120]
[320987633,1711731047539,-500.0,0.00052054,120]
[320987634,1711731047549,-1221.75,0.00052054,120]
[320987635,1711731047559,-500.0,0.00052054,120]
[320987636,1711731047569,-500.0,0.00052054,120]
[320987637,1711731047580,-500.0,0.00052054,120]
[320987638,1711731047590,-500.0,0.00052054,120]
[320987639,1711731047601,-500.0,0.00052054,120]
[320987640,1711731047612,-500.0,0.00052054,120]
[320987641,1711731047624,-500.0,0.00052054,120]
[320987642,1711731047634,-762.15,0.00052054,120]
[320987643,1711731047644,-500.0,0.00052054,120]
[320987644,1711731047655,-500.0,0.00052054,120]
[320987645,1711731047666,-500.0,0.00052054,120]
[320987646,1711731047676,-500.0,0.00052054,120]
[320987647,1711731047686,-562.03,0.00052054,120]
[320987648,1711731047696,-500.0,0.00052054,120]
[320987649,1711731047706,-500.0,0.00052054,120]
[320987650,1711731047716,-500.0,0.00052054,120]
[320987651,1711731047726,-500.0,0.00052054,120]
[320987652,1711731047737,-500.0,0.00052054,120]
[320987653,1711731047749,-500.0,0.00052054,120]
[320987654,1711731047759,-500.0,0.00052054,120]
[320987655,1711731047768,-500.0,0.00052054,120]
[320987656,1711731047778,-500.0,0.00052054,120]
[320987657,1711731047787,-1898.46,0.00052054,120]
[320987659,1711731047796,-582.85,0.00052054,120]
[320987660,1711731047806,-500.0,0.00052054,120]
[320987661,1711731047815,-3412.66,0.00052054,120]
[320987662,1711731047825,-500.0,0.00052054,120]
[320987663,1711731047834,-500.0,0.00052054,120]
[320987664,1711731047844,-1000.0,0.00052055,120]
[320987665,1711731047853,-214.0,0.0005209,15]
[320987666,1711731047863,-1000.0,0.00052096,120]
[320987667,1711731047872,-1472.37363453,0.00052122,120]
[320987668,1711731047882,-1000.0,0.00052138,120]
[320987669,1711731047892,-1120.77280023,0.00052154,120]
[320987670,1711731047902,-152.3588301,0.00052158,60]
[320987671,1711731047911,-1000.0,0.00052179,120]
[320987672,1711731047922,-192.15555556,0.00052219,120]
[320987673,1711731047933,-10308.55742286,0.0005222,8]
[320987674,1711731047942,-1000.0,0.00052221,120]
[320987675,1711731047952,-1000.0,0.00052262,120]
[320987676,1711731047962,-1000.0,0.00052304,120]
[320987677,1711731047971,-155.32385917,0.00052326,4]
[320987678,1711731048173,-155.0,0.00052326,4]
[320987679,1711731048183,-155.63091122,0.00052326,4]
[320987680,1711731048193,-155.0,0.00052326,4]
[320987681,1711731048203,-854.07094991,0.00052326,10]
[320987682,1711731048213,-198.72452686,0.00052326,4]
[320987683,1711731048222,-155.99170521,0.00052326,4]
[320987684,1711731048233,-201.05935657,0.00052326,4]
[320987685,1711731048245,-117418.01380663,0.00052328,36]
[320987686,1711731048510,-1491.88562598,0.00052328,36]
[320987687,1711731048529,-6988.4,0.00052328,36]
[320987688,1711731048540,-10498.85412,0.00052328,36]
[320987689,1711731048587,-24.01664701,0.00052054,120]
[320987690,1711731048601,-475.98335299,0.00052054,120]
[320987691,1711731048611,-447.06319097,0.00052328,36]
[320987692,1711731048638,-500.0,0.00052054,120]
[320987693,1711731048649,-15374.27914322,0.00052328,36]
[320987694,1711731048658,-984.73315759,0.00052328,120]
[320987695,1711731048668,-500.0,0.00052328,30]
[320987696,1711731048677,-610.95,0.00052328,120]
[320987697,1711731048687,-500.0,0.00052328,120]
[320987698,1711731048697,-500.0,0.00052328,120]
[320987699,1711731048707,-500.0,0.00052328,120]
[320987700,1711731048716,-500.0,0.00052328,120]
[320987701,1711731048726,-500.0,0.00052328,120]
[320987702,1711731048735,-160.43074006,0.00052328,120]
[320987703,1711731048747,-500.0,0.00052328,120]
[320987704,1711731048757,-500.0,0.00052328,120]
[320987705,1711731048766,-500.0,0.00052328,120]
[320987706,1711731048776,-500.0,0.00052328,120]
[320987707,1711731048786,-500.0,0.00052328,120]
[320987708,1711731048801,-483.50147015,0.00052328,120]
[320987709,1711731048811,-500.0,0.00052328,120]
[320987710,1711731048821,-500.0,0.00052328,120]
[320987711,1711731048832,-500.0,0.00052328,120]
[320987712,1711731048842,-554.27015034,0.00052328,120]
[320987713,1711731048852,-500.0,0.00052328,120]
[320987714,1711731048862,-500.0,0.00052328,120]
[320987715,1711731048872,-500.0,0.00052328,120]
[320987716,1711731048882,-500.0,0.00052328,120]
[320987717,1711731048892,-500.0,0.00052328,120]
[320987718,1711731048902,-500.0,0.00052328,120]
[320987719,1711731048913,-500.0,0.00052328,120]
[320987720,1711731048924,-500.0,0.00052328,120]
[320987721,1711731048934,-500.0,0.00052328,120]
[320987722,1711731048946,-500.0,0.00052328,120]
[320987723,1711731048957,-548.73,0.00052328,120]
[320987724,1711731048967,-500.0,0.00052328,120]
[320987725,1711731048977,-500.0,0.00052328,120]
[320987726,1711731048987,-500.0,0.00052328,120]
[320987727,1711731048999,-500.0,0.00052328,120]
[320987728,1711731049008,-500.0,0.00052328,120]
[320987729,1711731049018,-500.0,0.00052328,120]
[320987730,1711731049028,-500.0,0.00052328,120]
[320987731,1711731049038,-500.0,0.00052328,120]
[320987732,1711731049048,-500.0,0.00052328,120]
[320987733,1711731049058,-500.0,0.00052328,120]
[320987734,1711731049067,-500.0,0.00052328,120]
[320987735,1711731049077,-500.0,0.00052328,120]
[320987736,1711731049086,-500.0,0.00052328,120]
[320987737,1711731049096,-500.0,0.00052328,120]
[320987738,1711731049105,-502.88,0.00052328,120]
[320987739,1711731049115,-500.0,0.00052328,120]
[320987740,1711731049124,-500.0,0.00052328,120]
[320987741,1711731049134,-500.0,0.00052328,120]
[320987742,1711731049143,-500.0,0.00052328,120]
[320987743,1711731049153,-500.0,0.00052328,120]
[320987744,1711731049163,-500.0,0.00052328,120]
[320987745,1711731049172,-500.0,0.00052328,2]
[320987746,1711731049182,-500.0,0.00052328,120]
[320987747,1711731049192,-500.0,0.00052328,2]
[320987748,1711731049201,-500.0,0.00052328,120]
[320987749,1711731049211,-500.0,0.00052328,120]
[320987750,1711731049221,-500.0,0.00052328,120]
[320987751,1711731049230,-500.0,0.00052328,120]
[320987752,1711731049245,-500.0,0.00052328,120]
[320987753,1711731049254,-500.0,0.00052328,120]
[320987754,1711731049264,-568.51,0.00052328,120]
[320987755,1711731049274,-500.0,0.00052328,120]
[320987756,1711731049283,-500.0,0.00052328,120]
[320987757,1711731049292,-500.0,0.00052328,120]
[320987758,1711731049302,-540.25,0.00052328,120]
[320987759,1711731049311,-500.0,0.00052328,120]
[320987760,1711731049320,-509.11,0.00052328,120]
[320987761,1711731049330,-500.0,0.00052328,120]
[320987762,1711731049339,-1041.23,0.00052328,120]
[320987763,1711731049348,-500.0,0.00052328,120]
[320987764,1711731049359,-500.0,0.00052328,120]
[320987765,1711731049368,-343.75351248,0.00052328,120]
[320987766,1711731049377,-500.0,0.00052328,120]
[320987767,1711731049387,-500.0,0.00052328,120]
[320987768,1711731049396,-500.0,0.00052328,120]
[320987769,1711731049406,-318.60953987,0.00052328,120]
[320987770,1711731049416,-500.0,0.00052328,120]
[320987771,1711731049426,-500.0,0.00052328,15]
[320987772,1711731049435,-500.0,0.00052328,120]
[320987773,1711731049445,-500.0,0.00052328,120]
[320987774,1711731049454,-500.0,0.00052328,120]
[320987775,1711731049464,-500.0,0.00052328,120]
[320987776,1711731049474,-500.0,0.00052328,120]
[320987777,1711731049484,-500.0,0.00052328,120]
[320987778,1711731049496,-556.3,0.00052328,120]
[320987779,1711731049506,-500.0,0.00052328,120]
[320987780,1711731049521,-605.29,0.00052328,120]
[320987781,1711731049530,-500.0,0.00052328,120]
[320987782,1711731049540,-500.0,0.00052328,120]
[320987783,1711731049549,-500.0,0.00052328,120]
[320987784,1711731049561,-500.0,0.00052328,120]
[320987785,1711731049571,-500.0,0.00052328,120]
[320987786,1711731049581,-500.0,0.00052328,120]
[320987787,1711731049591,-500.0,0.00052328,120]
[320987788,1711731049601,-500.0,0.00052328,120]
[320987789,1711731049611,-500.0,0.00052328,120]
[320987790,1711731049621,-500.0,0.00052328,120]
[320987791,1711731049631,-500.0,0.00052328,120]
[320987792,1711731049640,-231.33946416,0.00052328,120]
[320987793,1711731049650,-500.0,0.00052328,7]
[320987794,1711731049659,-249.73,0.00052328,120]
[320987795,1711731049668,-500.0,0.00052328,120]
[320987796,1711731049679,-500.0,0.00052328,120]
[320987797,1711731049688,-500.0,0.00052328,120]
[320987798,1711731049698,-500.0,0.00052328,120]
[320987799,1711731049707,-500.0,0.00052328,120]
[320987800,1711731049716,-500.0,0.00052328,120]
[320987801,1711731049725,-413.62730342,0.00052328,120]
[320987802,1711731049735,-500.0,0.00052328,120]
[320987803,1711731049746,-500.0,0.00052328,120]
[320987804,1711731049755,-500.0,0.00052328,120]
[320987805,1711731049765,-500.0,0.00052328,120]
[320987806,1711731049775,-500.0,0.00052328,30]
[320987807,1711731049784,-152.05,0.00052328,120]
[320987808,1711731049793,-498.65,0.00052328,120]
[320987809,1711731049803,-500.0,0.00052328,120]
[320987810,1711731049812,-500.0,0.00052328,120]
[320987811,1711731049822,-500.0,0.00052328,120]
[320987812,1711731049832,-500.0,0.00052328,120]
[320987813,1711731049842,-500.0,0.00052328,120]
[320987814,1711731049851,-500.0,0.00052328,120]
[320987815,1711731049860,-480.42594031,0.00052328,120]
[320987816,1711731049869,-634.98,0.00052328,120]
[320987817,1711731049878,-500.0,0.00052328,120]
[320987818,1711731049889,-500.0,0.00052328,120]
[320987819,1711731049898,-500.0,0.00052328,120]
[320987820,1711731049907,-500.0,0.00052328,120]
[320987821,1711731049916,-500.0,0.00052328,120]
[320987822,1711731049928,-500.0,0.00052328,120]
[320987823,1711731049937,-500.0,0.00052328,120]
[320987824,1711731049947,-369.33,0.00052328,120]
[320987825,1711731049957,-500.0,0.00052328,120]
[320987826,1711731049966,-500.0,0.00052328,120]
[320987827,1711731049976,-1717.8,0.00052328,120]
[320987828,1711731049986,-500.0,0.00052328,120]
[320987829,1711731049995,-500.0,0.00052328,120]
[320987830,1711731050005,-500.0,0.00052328,120]
[320987831,1711731050014,-500.0,0.00052328,120]
[320987832,1711731050024,-500.0,0.00052328,120]
[320987833,1711731050034,-500.0,0.00052328,120]
[320987834,1711731050043,-500.0,0.00052328,120]
[320987835,1711731050053,-500.0,0.00052328,120]
[320987836,1711731050063,-500.0,0.00052328,120]
[320987837,1711731050072,-500.0,0.00052328,120]
[320987838,1711731050082,-160.07,0.00052328,120]
[320987839,1711731050092,-500.0,0.00052328,120]
[320987840,1711731050103,-500.0,0.00052328,120]
[320987841,1711731050113,-500.0,0.00052328,120]
[320987842,1711731050124,-500.0,0.00052328,120]
[320987843,1711731050134,-500.0,0.00052328,120]
[320987844,1711731050144,-500.0,0.00052328,120]
[320987845,1711731050155,-500.0,0.00052328,120]
[320987846,1711731050165,-500.0,0.00052328,120]
[320987847,1711731050175,-500.0,0.00052328,120]
[320987848,1711731050184,-500.0,0.00052328,120]
[320987849,1711731050195,-500.0,0.00052328,120]
[320987850,1711731050205,-500.0,0.00052328,120]
[320987851,1711731050214,-381.63,0.00052328,120]
[320987852,1711731050224,-500.0,0.00052328,120]
[320987853,1711731050234,-500.0,0.00052328,120]
[320987854,1711731050245,-500.0,0.00052328,120]
[320987855,1711731050255,-550.7,0.00052328,120]
[320987856,1711731050264,-500.0,0.00052328,120]
[320987857,1711731050274,-500.0,0.00052328,120]
[320987858,1711731050284,-500.0,0.00052328,120]
[320987859,1711731050295,-500.0,0.00052328,120]
[320987860,1711731050304,-500.0,0.00052328,120]
[320987861,1711731050314,-500.0,0.00052328,120]
[320987862,1711731050324,-500.0,0.00052328,120]
[320987863,1711731050333,-523.84,0.00052328,120]
[320987864,1711731050344,-500.0,0.00052328,120]
[320987865,1711731050353,-500.0,0.00052328,120]
[320987866,1711731050364,-500.0,0.00052328,120]
[320987867,1711731050374,-500.0,0.00052328,120]
[320987868,1711731050385,-500.0,0.00052328,120]
[320987869,1711731050395,-500.0,0.00052328,120]
[320987870,1711731050404,-500.0,0.00052328,120]
[320987871,1711731050414,-500.0,0.00052328,120]
[320987872,1711731050423,-500.0,0.00052328,120]
[320987873,1711731050434,-500.0,0.00052328,120]
[320987874,1711731050444,-553.17,0.00052328,120]
[320987875,1711731050453,-500.0,0.00052328,120]
[320987876,1711731050528,-500.0,0.00052328,120]
[320987877,1711731050538,-984.5,0.00052328,120]
[320987878,1711731050548,-500.0,0.00052328,120]
[320987879,1711731050559,-500.0,0.00052328,120]
[320987880,1711731050568,-500.0,0.00052328,120]
[320987881,1711731050579,-500.0,0.00052328,120]
[320987882,1711731050589,-500.0,0.00052328,120]
[320987883,1711731050599,-500.0,0.00052328,120]
[320987884,1711731050609,-502.0,0.00052328,120]
[320987885,1711731050619,-1573.3,0.00052328,120]
[320987886,1711731050629,-500.0,0.00052328,120]
[320987887,1711731050639,-500.0,0.00052328,120]
[320987888,1711731050649,-500.0,0.00052328,120]
[320987889,1711731050659,-500.0,0.00052328,120]
[320987890,1711731050668,-512.0,0.00052328,120]
[320987891,1711731050678,-555.07,0.00052328,120]
[320987892,1711731050687,-500.0,0.00052328,120]
[320987893,1711731050697,-500.0,0.00052328,120]
[320987894,1711731050707,-500.0,0.00052328,120]
[320987895,1711731050717,-500.0,0.00052328,120]
[320987896,1711731050727,-500.0,0.00052328,120]
[320987897,1711731050737,-500.0,0.00052328,120]
[320987898,1711731050747,-500.0,0.00052328,120]
[320987899,1711731050757,-500.0,0.00052328,120]
[320987900,1711731050766,-244.77,0.00052328,120]
[320987901,1711731050776,-500.0,0.00052328,120]
[320987902,1711731050786,-500.0,0.00052328,120]
[320987903,1711731050796,-500.0,0.00052328,120]
[320987904,1711731050805,-500.0,0.00052328,120]
[320987905,1711731050816,-500.0,0.00052328,120]
[320987906,1711731050826,-544.09,0.00052328,120]
[320987907,1711731050836,-500.0,0.00052328,120]
[320987908,1711731050846,-500.0,0.00052328,120]